[Event "Live Chess"]
[Site "Chess.com"]
[Date "2010.12.05"]
[Round "-"]
[White "serengog"]
[Black "hipposcottimus"]
[Result "1-0"]
[CurrentPosition "r1nR2k1/pp2q1pp/8/2P3Q1/8/1P4PP/PB4PK/8 b - -"]
[Timezone "UTC"]
[ECO "C58"]
[ECOUrl "https://www.chess.com/openings/Italian-Game-Knight-Attack-Polerio-Bishop-Check-Line-6...Bd7"]
[UTCDate "2010.12.05"]
[UTCTime "02:09:57"]
[WhiteElo "1584"]
[BlackElo "1359"]
[TimeControl "720+2"]
[Termination "serengog won by resignation"]
[StartTime "02:09:57"]
[EndDate "2010.12.05"]
[EndTime "02:31:53"]
[Link "https://www.chess.com/game/live/74143780"]

1. e4 {[%clk 0:12:00]} 1... e5 {[%clk 0:12:00]} 2. Nf3 {[%clk 0:12:00]} 2... Nc6 {[%clk 0:11:54.2]} 3. Bc4 {[%clk 0:11:59.2]} 3... Nf6 {[%clk 0:11:52.3]} 4. Ng5 {[%clk 0:11:58.7]} 4... d5 {[%clk 0:11:52.1]} 5. exd5 {[%clk 0:11:59.1]} 5... Na5 {[%clk 0:11:52]} 6. Bb5+ {[%clk 0:11:59.5]} 6... Bd7 {[%clk 0:11:51.1]} 7. Bxd7+ {[%clk 0:10:31.4]} 7... Nxd7 {[%clk 0:11:47.8]} 8. d4 {[%clk 0:09:50.5]} 8... Be7 {[%clk 0:11:43.4]} 9. Ne4 {[%clk 0:09:33.3]} 9... Nc4 {[%clk 0:11:13.2]} 10. b3 {[%clk 0:06:06.8]} 10... Ncb6 {[%clk 0:11:05.2]} 11. dxe5 {[%clk 0:05:55.3]} 11... Nxe5 {[%clk 0:11:01.1]} 12. c4 {[%clk 0:04:59.2]} 12... O-O {[%clk 0:10:33.9]} 13. O-O {[%clk 0:04:57.7]} 13... f5 {[%clk 0:10:32.3]} 14. Ng3 {[%clk 0:04:27.7]} 14... Bd6 {[%clk 0:10:02.5]} 15. Bb2 {[%clk 0:04:23.1]} 15... Ng4 {[%clk 0:09:55.1]} 16. Nd2 {[%clk 0:03:56]} 16... c6 {[%clk 0:07:37.4]} 17. h3 {[%clk 0:02:58.3]} 17... Bxg3 {[%clk 0:07:15.5]} 18. fxg3 {[%clk 0:02:57.9]} 18... Ne3 {[%clk 0:07:11.8]} 19. Qh5 {[%clk 0:02:22.5]} 19... Nxf1 {[%clk 0:06:44.6]} 20. Rxf1 {[%clk 0:02:20.3]} 20... Qd7 {[%clk 0:06:45.5]} 21. Nf3 {[%clk 0:01:58.2]} 21... cxd5 {[%clk 0:06:23.9]} 22. c5 {[%clk 0:01:33.7]} 22... Nc8 {[%clk 0:04:57.1]} 23. Qg5 {[%clk 0:01:31.5]} 23... Rf7 {[%clk 0:04:45]} 24. Ne5 {[%clk 0:01:19.7]} 24... Qe7 {[%clk 0:04:06.8]} 25. Nxf7 {[%clk 0:01:17.4]} 25... Qxf7 {[%clk 0:04:08]} 26. Rxf5 {[%clk 0:01:17.3]} 26... Qe7 {[%clk 0:03:59.1]} 27. Rxd5 {[%clk 0:01:08.5]} 27... Qe1+ {[%clk 0:03:46.4]} 28. Kh2 {[%clk 0:01:07.8]} 28... Qe7 {[%clk 0:03:08.9]} 29. Rd8+ {[%clk 0:01:03.4]} 1-0

[Event "Live Chess"]
[Site "Chess.com"]
[Date "2010.12.05"]
[Round "-"]
[White "hipposcottimus"]
[Black "MAGMAMA"]
[Result "0-1"]
[CurrentPosition "r3r1k1/ppp2pp1/2b4p/8/3N4/8/PPP2PqP/3R1RK1 w - -"]
[Timezone "UTC"]
[ECO "C62"]
[ECOUrl "https://www.chess.com/openings/Ruy-Lopez-Opening-Old-Steinitz-Defense-4.d4-exd4-5.Qxd4"]
[UTCDate "2010.12.05"]
[UTCTime "01:04:36"]
[WhiteElo "1568"]
[BlackElo "1414"]
[TimeControl "60"]
[Termination "MAGMAMA won by checkmate"]
[StartTime "01:04:36"]
[EndDate "2010.12.05"]
[EndTime "01:06:14"]
[Link "https://www.chess.com/game/live/74130608"]

1. e4 {[%clk 0:01:00]} 1... e5 {[%clk 0:01:00]} 2. Nf3 {[%clk 0:00:59.7]} 2... d6 {[%clk 0:00:59.6]} 3. d4 {[%clk 0:00:59.4]} 3... exd4 {[%clk 0:00:57.9]} 4. Qxd4 {[%clk 0:00:58.8]} 4... Nc6 {[%clk 0:00:55.7]} 5. Bb5 {[%clk 0:00:58.5]} 5... Bd7 {[%clk 0:00:52.9]} 6. Bxc6 {[%clk 0:00:58.2]} 6... Bxc6 {[%clk 0:00:50.8]} 7. O-O {[%clk 0:00:56.9]} 7... Nf6 {[%clk 0:00:50.1]} 8. Nc3 {[%clk 0:00:56.4]} 8... Be7 {[%clk 0:00:48.5]} 9. e5 {[%clk 0:00:55.8]} 9... dxe5 {[%clk 0:00:46]} 10. Qxe5 {[%clk 0:00:55.5]} 10... O-O {[%clk 0:00:44]} 11. Bg5 {[%clk 0:00:52]} 11... Re8 {[%clk 0:00:42.5]} 12. Qg3 {[%clk 0:00:49.3]} 12... Nh5 {[%clk 0:00:40.5]} 13. Qg4 {[%clk 0:00:46.9]} 13... Bxg5 {[%clk 0:00:36]} 14. Nxg5 {[%clk 0:00:46.6]} 14... Nf6 {[%clk 0:00:34.4]} 15. Qh4 {[%clk 0:00:44.3]} 15... Nd5 {[%clk 0:00:29.1]} 16. Rad1 {[%clk 0:00:43.4]} 16... h6 {[%clk 0:00:27.5]} 17. Nge4 {[%clk 0:00:36.1]} 17... Qxh4 {[%clk 0:00:24.8]} 18. Nxd5 {[%clk 0:00:33.1]} 18... Bxd5 {[%clk 0:00:22.5]} 19. Ng3 {[%clk 0:00:27.9]} 19... Bc6 {[%clk 0:00:17.8]} 20. Nf5 {[%clk 0:00:24.5]} 20... Qg5 {[%clk 0:00:14.3]} 21. Nd4 {[%clk 0:00:20.4]} 21... Qxg2# {[%clk 0:00:12.6]} 0-1

[Event "Live Chess"]
[Site "Chess.com"]
[Date "2010.12.05"]
[Round "-"]
[White "hipposcottimus"]
[Black "HarryWHolster"]
[Result "0-1"]
[CurrentPosition "2k5/p1p1r3/1p6/1P1p4/P2K4/8/8/8 w - -"]
[Timezone "UTC"]
[ECO "B00"]
[ECOUrl "https://www.chess.com/openings/Owens-Defense"]
[UTCDate "2010.12.05"]
[UTCTime "01:01:42"]
[WhiteElo "1568"]
[BlackElo "1754"]
[TimeControl "60"]
[Termination "HarryWHolster won on time"]
[StartTime "01:01:42"]
[EndDate "2010.12.05"]
[EndTime "01:03:46"]
[Link "https://www.chess.com/game/live/74130142"]

1. e4 {[%clk 0:01:00]} 1... b6 {[%clk 0:01:00]} 2. Nf3 {[%clk 0:00:59.6]} 2... Bb7 {[%clk 0:00:59.7]} 3. Nc3 {[%clk 0:00:58.3]} 3... g6 {[%clk 0:00:59.5]} 4. d4 {[%clk 0:00:57.5]} 4... Bg7 {[%clk 0:00:59.2]} 5. Be3 {[%clk 0:00:56.5]} 5... e6 {[%clk 0:00:58.9]} 6. Bd3 {[%clk 0:00:55.2]} 6... h5 {[%clk 0:00:58.6]} 7. Qe2 {[%clk 0:00:52.6]} 7... h4 {[%clk 0:00:58.2]} 8. g3 {[%clk 0:00:50.9]} 8... hxg3 {[%clk 0:00:57.3]} 9. fxg3 {[%clk 0:00:49]} 9... Nf6 {[%clk 0:00:56.5]} 10. O-O-O {[%clk 0:00:47.7]} 10... Qe7 {[%clk 0:00:52.5]} 11. Rhf1 {[%clk 0:00:47.3]} 11... Nh5 {[%clk 0:00:50.8]} 12. g4 {[%clk 0:00:44.8]} 12... Nf6 {[%clk 0:00:49.6]} 13. e5 {[%clk 0:00:43.9]} 13... Nxg4 {[%clk 0:00:48.8]} 14. h3 {[%clk 0:00:41.3]} 14... Nf6 {[%clk 0:00:47]} 15. exf6 {[%clk 0:00:40.2]} 15... Bxf6 {[%clk 0:00:46.4]} 16. Ne5 {[%clk 0:00:40]} 16... Bxe5 {[%clk 0:00:45.5]} 17. dxe5 {[%clk 0:00:39.7]} 17... Rxh3 {[%clk 0:00:43.3]} 18. Qg4 {[%clk 0:00:35.4]} 18... Rh5 {[%clk 0:00:41]} 19. Rh1 {[%clk 0:00:33]} 19... Rxh1 {[%clk 0:00:39.5]} 20. Bxg6 {[%clk 0:00:26.6]} 20... Rxd1+ {[%clk 0:00:37.3]} 21. Kxd1 {[%clk 0:00:24.6]} 21... fxg6 {[%clk 0:00:36.5]} 22. Qxg6+ {[%clk 0:00:23.4]} 22... Qf7 {[%clk 0:00:35.5]} 23. Qd3 {[%clk 0:00:21.5]} 23... Bf3+ {[%clk 0:00:34.5]} 24. Kc1 {[%clk 0:00:20.4]} 24... Qh5 {[%clk 0:00:33.1]} 25. Bd4 {[%clk 0:00:18]} 25... Qh1+ {[%clk 0:00:31.7]} 26. Kd2 {[%clk 0:00:15]} 26... Qg2+ {[%clk 0:00:28.6]} 27. Ne2 {[%clk 0:00:14.5]} 27... Qxe2+ {[%clk 0:00:27]} 28. Qxe2 {[%clk 0:00:14.2]} 28... Bxe2 {[%clk 0:00:26.3]} 29. Kxe2 {[%clk 0:00:14]} 29... Nc6 {[%clk 0:00:25.7]} 30. Kd3 {[%clk 0:00:12.1]} 30... Nxd4 {[%clk 0:00:24.9]} 31. Kxd4 {[%clk 0:00:11.9]} 31... O-O-O {[%clk 0:00:24.2]} 32. c4 {[%clk 0:00:11.5]} 32... Rg8 {[%clk 0:00:23.9]} 33. b4 {[%clk 0:00:07.9]} 33... Rg4+ {[%clk 0:00:23.5]} 34. Kc3 {[%clk 0:00:07.7]} 34... d5 {[%clk 0:00:20.8]} 35. cxd5 {[%clk 0:00:05.4]} 35... exd5 {[%clk 0:00:20]} 36. e6 {[%clk 0:00:05.1]} 36... Re4 {[%clk 0:00:19]} 37. b5 {[%clk 0:00:01.2]} 37... Rxe6 {[%clk 0:00:18.2]} 38. a4 {[%clk 0:00:01]} 38... Re3+ {[%clk 0:00:17.5]} 39. Kd4 {[%clk 0:00:00.5]} 39... Re7 {[%clk 0:00:15.6]} 0-1

[Event "Live Chess"]
[Site "Chess.com"]
[Date "2010.12.05"]
[Round "-"]
[White "hipposcottimus"]
[Black "90pause"]
[Result "1-0"]
[CurrentPosition "4rrk1/1b1p3R/p5Q1/2p3N1/2pp4/8/PP3PP1/R2B2K1 b - -"]
[Timezone "UTC"]
[ECO "B20"]
[ECOUrl "https://www.chess.com/openings/Sicilian-Defense"]
[UTCDate "2010.12.05"]
[UTCTime "00:58:45"]
[WhiteElo "1572"]
[BlackElo "1479"]
[TimeControl "60"]
[Termination "hipposcottimus won by checkmate"]
[StartTime "00:58:45"]
[EndDate "2010.12.05"]
[EndTime "01:00:30"]
[Link "https://www.chess.com/game/live/74129588"]

1. e4 {[%clk 0:01:00]} 1... c5 {[%clk 0:01:00]} 2. Bb5 {[%clk 0:00:58]} 2... a6 {[%clk 0:00:58.2]} 3. Be2 {[%clk 0:00:57.7]} 3... b5 {[%clk 0:00:57.2]} 4. Nf3 {[%clk 0:00:57.5]} 4... Nc6 {[%clk 0:00:56.5]} 5. d4 {[%clk 0:00:57.1]} 5... e6 {[%clk 0:00:56]} 6. d5 {[%clk 0:00:55.5]} 6... Nce7 {[%clk 0:00:53.6]} 7. c4 {[%clk 0:00:52.1]} 7... Nf6 {[%clk 0:00:52.1]} 8. Qc2 {[%clk 0:00:48.7]} 8... Bb7 {[%clk 0:00:50]} 9. Nc3 {[%clk 0:00:47.4]} 9... bxc4 {[%clk 0:00:47.7]} 10. e5 {[%clk 0:00:45.6]} 10... Nfxd5 {[%clk 0:00:45.6]} 11. Nxd5 {[%clk 0:00:44.9]} 11... exd5 {[%clk 0:00:44.5]} 12. O-O {[%clk 0:00:41.9]} 12... Ng6 {[%clk 0:00:43.3]} 13. Re1 {[%clk 0:00:39]} 13... Be7 {[%clk 0:00:42.5]} 14. Bf4 {[%clk 0:00:37.4]} 14... O-O {[%clk 0:00:40.8]} 15. Bg3 {[%clk 0:00:36.1]} 15... f6 {[%clk 0:00:38.1]} 16. Bd1 {[%clk 0:00:27.8]} 16... fxe5 {[%clk 0:00:32.2]} 17. Bxe5 {[%clk 0:00:24.6]} 17... Nxe5 {[%clk 0:00:30.8]} 18. Rxe5 {[%clk 0:00:24.3]} 18... Bd6 {[%clk 0:00:30.5]} 19. Rh5 {[%clk 0:00:21.9]} 19... g6 {[%clk 0:00:27.6]} 20. Rh6 {[%clk 0:00:18.8]} 20... Qg5 {[%clk 0:00:25.5]} 21. Nxg5 {[%clk 0:00:16.6]} 21... Bxh2+ {[%clk 0:00:23.6]} 22. Rxh2 {[%clk 0:00:14.1]} 22... d4 {[%clk 0:00:22.6]} 23. Rxh7 {[%clk 0:00:12.7]} 23... Rae8 {[%clk 0:00:17.2]} 24. Qxg6# {[%clk 0:00:10.4]} 1-0

[Event "Live Chess"]
[Site "Chess.com"]
[Date "2010.12.05"]
[Round "-"]
[White "chitown33"]
[Black "hipposcottimus"]
[Result "0-1"]
[CurrentPosition "2r1r1k1/bp1b1ppp/p4q2/3p1P2/2pN2B1/2P4Q/PP4PP/3R1R1K w - -"]
[Timezone "UTC"]
[ECO "C44"]
[ECOUrl "https://www.chess.com/openings/Kings-Pawn-Opening-Tayler-Opening-3...Nf6"]
[UTCDate "2010.12.05"]
[UTCTime "00:55:06"]
[WhiteElo "1528"]
[BlackElo "1566"]
[TimeControl "60"]
[Termination "hipposcottimus won on time"]
[StartTime "00:55:06"]
[EndDate "2010.12.05"]
[EndTime "00:57:09"]
[Link "https://www.chess.com/game/live/74128740"]

1. e4 {[%clk 0:01:00]} 1... e5 {[%clk 0:01:00]} 2. Nf3 {[%clk 0:00:59.2]} 2... Nc6 {[%clk 0:00:59.7]} 3. Be2 {[%clk 0:00:58.8]} 3... Nf6 {[%clk 0:00:56.8]} 4. O-O {[%clk 0:00:58.3]} 4... Nxe4 {[%clk 0:00:54.9]} 5. d3 {[%clk 0:00:57.9]} 5... Nf6 {[%clk 0:00:51.7]} 6. Bg5 {[%clk 0:00:57.4]} 6... d5 {[%clk 0:00:50.7]} 7. Qd2 {[%clk 0:00:54.1]} 7... Qd6 {[%clk 0:00:50.3]} 8. c3 {[%clk 0:00:50.6]} 8... Be7 {[%clk 0:00:48.7]} 9. Bxf6 {[%clk 0:00:49.3]} 9... Bxf6 {[%clk 0:00:47]} 10. Na3 {[%clk 0:00:49.3]} 10... O-O {[%clk 0:00:44.1]} 11. Nb5 {[%clk 0:00:48.4]} 11... Qe6 {[%clk 0:00:42.5]} 12. d4 {[%clk 0:00:45.9]} 12... Bd8 {[%clk 0:00:35.4]} 13. dxe5 {[%clk 0:00:42.1]} 13... Nxe5 {[%clk 0:00:33.8]} 14. Nxe5 {[%clk 0:00:37.5]} 14... Qxe5 {[%clk 0:00:33]} 15. f4 {[%clk 0:00:34.3]} 15... Qf6 {[%clk 0:00:29.9]} 16. Nd4 {[%clk 0:00:28.8]} 16... c6 {[%clk 0:00:28.9]} 17. f5 {[%clk 0:00:27]} 17... Bc7 {[%clk 0:00:27.4]} 18. Bg4 {[%clk 0:00:23.2]} 18... c5 {[%clk 0:00:24.9]} 19. Nb5 {[%clk 0:00:20.1]} 19... Bb8 {[%clk 0:00:21.5]} 20. Qf2 {[%clk 0:00:15.8]} 20... a6 {[%clk 0:00:21.1]} 21. Na3 {[%clk 0:00:13.6]} 21... Ba7 {[%clk 0:00:18.8]} 22. Kh1 {[%clk 0:00:09.7]} 22... c4 {[%clk 0:00:18.1]} 23. Qg3 {[%clk 0:00:08.4]} 23... Re8 {[%clk 0:00:16.1]} 24. Nc2 {[%clk 0:00:07.6]} 24... Bd7 {[%clk 0:00:13.3]} 25. Nd4 {[%clk 0:00:06.9]} 25... Bc6 {[%clk 0:00:13]} 26. Rad1 {[%clk 0:00:03.3]} 26... Rac8 {[%clk 0:00:10.6]} 27. Qh3 {[%clk 0:00:01.7]} 27... Bd7 {[%clk 0:00:09.6]} 0-1

[Event "Live Chess"]
[Site "Chess.com"]
[Date "2010.12.05"]
[Round "-"]
[White "hipposcottimus"]
[Black "thundurrr"]
[Result "0-1"]
[CurrentPosition "4R3/3pBk1p/2p3p1/5p2/5P2/3p4/r5PP/6K1 w - -"]
[Timezone "UTC"]
[ECO "C47"]
[ECOUrl "https://www.chess.com/openings/Four-Knights-Game"]
[UTCDate "2010.12.05"]
[UTCTime "00:51:44"]
[WhiteElo "1559"]
[BlackElo "1667"]
[TimeControl "120"]
[Termination "thundurrr won on time"]
[StartTime "00:51:44"]
[EndDate "2010.12.05"]
[EndTime "00:54:41"]
[Link "https://www.chess.com/game/live/74127852"]

1. e4 {[%clk 0:02:00]} 1... e5 {[%clk 0:02:00]} 2. Nf3 {[%clk 0:01:59]} 2... Nf6 {[%clk 0:01:58.7]} 3. Nc3 {[%clk 0:01:55.2]} 3... Nc6 {[%clk 0:01:57.4]} 4. d4 {[%clk 0:01:51.1]} 4... exd4 {[%clk 0:01:55.6]} 5. Nxd4 {[%clk 0:01:50.8]} 5... Bb4 {[%clk 0:01:53.4]} 6. Nxc6 {[%clk 0:01:44.8]} 6... Bxc3+ {[%clk 0:01:51.3]} 7. bxc3 {[%clk 0:01:42.3]} 7... bxc6 {[%clk 0:01:51.3]} 8. Bc4 {[%clk 0:01:40]} 8... Nxe4 {[%clk 0:01:48.9]} 9. O-O {[%clk 0:01:39.7]} 9... O-O {[%clk 0:01:46.6]} 10. Re1 {[%clk 0:01:39.3]} 10... Nd6 {[%clk 0:01:45.7]} 11. Bb3 {[%clk 0:01:37.3]} 11... a5 {[%clk 0:01:44.1]} 12. c4 {[%clk 0:01:37]} 12... a4 {[%clk 0:01:42.4]} 13. c5 {[%clk 0:01:35.6]} 13... axb3 {[%clk 0:01:34.3]} 14. cxd6 {[%clk 0:01:35.2]} 14... bxc2 {[%clk 0:01:33.2]} 15. Qxc2 {[%clk 0:01:34]} 15... cxd6 {[%clk 0:01:32.1]} 16. Bb2 {[%clk 0:01:33]} 16... Re8 {[%clk 0:01:26.2]} 17. Qc3 {[%clk 0:01:32]} 17... Rxe1+ {[%clk 0:01:24.4]} 18. Rxe1 {[%clk 0:01:30.9]} 18... f6 {[%clk 0:01:23.3]} 19. Qg3 {[%clk 0:01:25.7]} 19... d5 {[%clk 0:01:13.3]} 20. Bc1 {[%clk 0:01:25.3]} 20... Rxa2 {[%clk 0:01:10.2]} 21. Bh6 {[%clk 0:01:23.8]} 21... g6 {[%clk 0:01:03.9]} 22. f4 {[%clk 0:01:17.3]} 22... f5 {[%clk 0:00:59.9]} 23. Bg5 {[%clk 0:01:14.7]} 23... Qb6+ {[%clk 0:00:54.8]} 24. Qe3 {[%clk 0:01:14.4]} 24... Qxe3+ {[%clk 0:00:53.3]} 25. Rxe3 {[%clk 0:01:14.1]} 25... d4 {[%clk 0:00:48.1]} 26. Re8+ {[%clk 0:01:13]} 26... Kf7 {[%clk 0:00:46.4]} 27. Rxc8 {[%clk 0:01:12.5]} 27... d3 {[%clk 0:00:45.8]} 28. Rd8 {[%clk 0:01:11.2]} 28... Ke6 {[%clk 0:00:42.8]} 29. Re8+ {[%clk 0:01:10.2]} 29... Kd6 {[%clk 0:00:41.5]} 30. Be7+ {[%clk 0:00:59.4]} 30... Kd5 {[%clk 0:00:34.2]} 31. Rd8 {[%clk 0:00:57.8]} 31... Ke6 {[%clk 0:00:32.8]} 32. Re8 {[%clk 0:00:50.6]} 32... Kf7 {[%clk 0:00:28.6]} 0-1

[Event "Live Chess"]
[Site "Chess.com"]
[Date "2010.12.05"]
[Round "-"]
[White "okeymet"]
[Black "hipposcottimus"]
[Result "0-1"]
[CurrentPosition "8/p1p4p/6b1/Pk4p1/8/4K1P1/7P/2R5 w - -"]
[Timezone "UTC"]
[ECO "C46"]
[ECOUrl "https://www.chess.com/openings/Three-Knights-Opening"]
[UTCDate "2010.12.05"]
[UTCTime "00:48:04"]
[WhiteElo "1212"]
[BlackElo "1565"]
[TimeControl "60"]
[Termination "hipposcottimus won on time"]
[StartTime "00:48:04"]
[EndDate "2010.12.05"]
[EndTime "00:50:06"]
[Link "https://www.chess.com/game/live/74127006"]

1. e4 {[%clk 0:01:00]} 1... e5 {[%clk 0:01:00]} 2. Nc3 {[%clk 0:00:59.2]} 2... Nc6 {[%clk 0:00:59.7]} 3. Nf3 {[%clk 0:00:58]} 3... Nf6 {[%clk 0:00:59.2]} 4. Bb5 {[%clk 0:00:56.9]} 4... Bb4 {[%clk 0:00:58.9]} 5. Bxc6 {[%clk 0:00:55.2]} 5... Bxc3 {[%clk 0:00:58.3]} 6. dxc3 {[%clk 0:00:53.6]} 6... dxc6 {[%clk 0:00:57.9]} 7. Qxd8+ {[%clk 0:00:52.2]} 7... Kxd8 {[%clk 0:00:57.6]} 8. Bg5 {[%clk 0:00:51.2]} 8... Ke7 {[%clk 0:00:57.3]} 9. Bxf6+ {[%clk 0:00:50.2]} 9... Kxf6 {[%clk 0:00:57]} 10. O-O {[%clk 0:00:48.3]} 10... Re8 {[%clk 0:00:56.6]} 11. Rad1 {[%clk 0:00:46.1]} 11... Ke7 {[%clk 0:00:56.2]} 12. Rfe1 {[%clk 0:00:45.1]} 12... Kf8 {[%clk 0:00:55.9]} 13. Rd3 {[%clk 0:00:42.6]} 13... b6 {[%clk 0:00:55.6]} 14. Nh4 {[%clk 0:00:40.9]} 14... Ba6 {[%clk 0:00:55.3]} 15. c4 {[%clk 0:00:38.3]} 15... Kg8 {[%clk 0:00:55]} 16. Rc3 {[%clk 0:00:36.3]} 16... b5 {[%clk 0:00:54.7]} 17. Nf5 {[%clk 0:00:35.1]} 17... bxc4 {[%clk 0:00:52.7]} 18. b3 {[%clk 0:00:32.1]} 18... g5 {[%clk 0:00:51]} 19. bxc4 {[%clk 0:00:30.4]} 19... Red8 {[%clk 0:00:45.7]} 20. a4 {[%clk 0:00:29.3]} 20... Rab8 {[%clk 0:00:44.9]} 21. Rc1 {[%clk 0:00:26.7]} 21... Rb4 {[%clk 0:00:44.4]} 22. Ne7+ {[%clk 0:00:25]} 22... Kf8 {[%clk 0:00:42]} 23. Nxc6 {[%clk 0:00:24.6]} 23... Rxc4 {[%clk 0:00:37]} 24. Rxc4 {[%clk 0:00:21.1]} 24... Bxc4 {[%clk 0:00:36.6]} 25. Nxd8 {[%clk 0:00:19.8]} 25... Ke8 {[%clk 0:00:36.3]} 26. Nc6 {[%clk 0:00:19.1]} 26... Be6 {[%clk 0:00:36]} 27. a5 {[%clk 0:00:16.6]} 27... f5 {[%clk 0:00:35.6]} 28. c3 {[%clk 0:00:15.8]} 28... fxe4 {[%clk 0:00:34.3]} 29. Nxe5 {[%clk 0:00:15]} 29... Ke7 {[%clk 0:00:31]} 30. Nc6+ {[%clk 0:00:13.8]} 30... Kf6 {[%clk 0:00:30.1]} 31. c4 {[%clk 0:00:13.1]} 31... Bd7 {[%clk 0:00:28.1]} 32. Re1 {[%clk 0:00:11.8]} 32... Bxc6 {[%clk 0:00:27.1]} 33. f3 {[%clk 0:00:10.7]} 33... Ke5 {[%clk 0:00:26.8]} 34. fxe4 {[%clk 0:00:08]} 34... Bxe4 {[%clk 0:00:26.4]} 35. Kf2 {[%clk 0:00:07.6]} 35... Kd4 {[%clk 0:00:26.1]} 36. c5 {[%clk 0:00:06.6]} 36... Bc6 {[%clk 0:00:23.1]} 37. Rd1+ {[%clk 0:00:03.9]} 37... Kxc5 {[%clk 0:00:22.6]} 38. g3 {[%clk 0:00:03.4]} 38... Kb5 {[%clk 0:00:21.6]} 39. Rc1 {[%clk 0:00:02.5]} 39... Be4 {[%clk 0:00:17]} 40. Ke3 {[%clk 0:00:02.1]} 40... Bg6 {[%clk 0:00:15.9]} 0-1

[Event "Live Chess"]
[Site "Chess.com"]
[Date "2010.12.05"]
[Round "-"]
[White "leonardodavinci1964"]
[Black "hipposcottimus"]
[Result "1-0"]
[CurrentPosition "1r5k/p5pp/4b3/2q5/2p5/2P2BQ1/PP4P1/R6K b - -"]
[Timezone "UTC"]
[ECO "C44"]
[ECOUrl "https://www.chess.com/openings/Kings-Pawn-Opening-Kings-Knight-Variation-2...Nc6-3.d3-Nf6"]
[UTCDate "2010.12.05"]
[UTCTime "00:43:41"]
[WhiteElo "1547"]
[BlackElo "1563"]
[TimeControl "60"]
[Termination "leonardodavinci1964 won on time"]
[StartTime "00:43:41"]
[EndDate "2010.12.05"]
[EndTime "00:45:43"]
[Link "https://www.chess.com/game/live/74126397"]

1. e4 {[%clk 0:01:00]} 1... e5 {[%clk 0:01:00]} 2. Nf3 {[%clk 0:00:59.4]} 2... Nc6 {[%clk 0:00:59.6]} 3. d3 {[%clk 0:00:58.9]} 3... Nf6 {[%clk 0:00:59.3]} 4. c3 {[%clk 0:00:58.4]} 4... d5 {[%clk 0:00:59]} 5. Be2 {[%clk 0:00:58.1]} 5... dxe4 {[%clk 0:00:57.8]} 6. dxe4 {[%clk 0:00:56.5]} 6... Bd6 {[%clk 0:00:57.5]} 7. Nbd2 {[%clk 0:00:53.2]} 7... O-O {[%clk 0:00:56.4]} 8. O-O {[%clk 0:00:52.2]} 8... Ne7 {[%clk 0:00:53.9]} 9. Nh4 {[%clk 0:00:50.8]} 9... c5 {[%clk 0:00:53.6]} 10. f4 {[%clk 0:00:48.3]} 10... Nc6 {[%clk 0:00:53.3]} 11. fxe5 {[%clk 0:00:46.4]} 11... Bxe5 {[%clk 0:00:51.2]} 12. Ndf3 {[%clk 0:00:45.4]} 12... Nxe4 {[%clk 0:00:49.7]} 13. Nxe5 {[%clk 0:00:43.6]} 13... Qxh4 {[%clk 0:00:48.4]} 14. Nxc6 {[%clk 0:00:41.5]} 14... bxc6 {[%clk 0:00:45.5]} 15. Bf3 {[%clk 0:00:40.5]} 15... Ng5 {[%clk 0:00:43.4]} 16. Bxc6 {[%clk 0:00:38.2]} 16... Rb8 {[%clk 0:00:38]} 17. Bxg5 {[%clk 0:00:34.7]} 17... Qxg5 {[%clk 0:00:36.8]} 18. Ba4 {[%clk 0:00:32.8]} 18... Bh3 {[%clk 0:00:36.4]} 19. Rf2 {[%clk 0:00:30.5]} 19... Rfd8 {[%clk 0:00:31.5]} 20. Qf1 {[%clk 0:00:27.9]} 20... Rd5 {[%clk 0:00:22.4]} 21. Bb3 {[%clk 0:00:26.9]} 21... Rf5 {[%clk 0:00:20.1]} 22. Rxf5 {[%clk 0:00:24.6]} 22... Bxf5 {[%clk 0:00:19.8]} 23. h3 {[%clk 0:00:22.4]} 23... Bxh3 {[%clk 0:00:18.9]} 24. Qxf7+ {[%clk 0:00:18.2]} 24... Kh8 {[%clk 0:00:14.8]} 25. Qf3 {[%clk 0:00:16.5]} 25... Bg4 {[%clk 0:00:12.3]} 26. Qg3 {[%clk 0:00:14.6]} 26... c4 {[%clk 0:00:07.5]} 27. Bd1 {[%clk 0:00:12.2]} 27... Qc5+ {[%clk 0:00:07]} 28. Kh1 {[%clk 0:00:10]} 28... Be6 {[%clk 0:00:05.8]} 29. Bf3 {[%clk 0:00:07.4]} 1-0

[Event "Live Chess"]
[Site "Chess.com"]
[Date "2010.12.05"]
[Round "-"]
[White "MAGMAMA"]
[Black "hipposcottimus"]
[Result "1-0"]
[CurrentPosition "4r1k1/p3qpQp/b1p1r3/8/2p1P3/2BP3P/PP3PP1/1R2R1K1 b - -"]
[Timezone "UTC"]
[ECO "C65"]
[ECOUrl "https://www.chess.com/openings/Ruy-Lopez-Opening-Berlin-Defense-4.Bxc6-dxc6-5.d3"]
[UTCDate "2010.12.05"]
[UTCTime "00:37:47"]
[WhiteElo "1414"]
[BlackElo "1572"]
[TimeControl "60"]
[Termination "MAGMAMA won by checkmate"]
[StartTime "00:37:47"]
[EndDate "2010.12.05"]
[EndTime "00:39:07"]
[Link "https://www.chess.com/game/live/74125132"]

1. e4 {[%clk 0:01:00]} 1... e5 {[%clk 0:01:00]} 2. Nf3 {[%clk 0:00:59.3]} 2... Nc6 {[%clk 0:00:59.5]} 3. Bb5 {[%clk 0:00:58.4]} 3... Nf6 {[%clk 0:00:59.2]} 4. Bxc6 {[%clk 0:00:57.6]} 4... dxc6 {[%clk 0:00:59]} 5. d3 {[%clk 0:00:57]} 5... Bd6 {[%clk 0:00:58.6]} 6. h3 {[%clk 0:00:54.6]} 6... c5 {[%clk 0:00:58.2]} 7. O-O {[%clk 0:00:53.6]} 7... O-O {[%clk 0:00:57.9]} 8. Re1 {[%clk 0:00:53]} 8... Nh5 {[%clk 0:00:57.6]} 9. Nxe5 {[%clk 0:00:49.6]} 9... Bxe5 {[%clk 0:00:53.9]} 10. Qxh5 {[%clk 0:00:48.8]} 10... Bf6 {[%clk 0:00:53.5]} 11. Qxc5 {[%clk 0:00:46.9]} 11... b6 {[%clk 0:00:52.2]} 12. Qe3 {[%clk 0:00:46]} 12... Bb7 {[%clk 0:00:51.3]} 13. Qe2 {[%clk 0:00:44.4]} 13... Re8 {[%clk 0:00:50.9]} 14. c3 {[%clk 0:00:41]} 14... Qe7 {[%clk 0:00:50.4]} 15. Nd2 {[%clk 0:00:38.6]} 15... Rad8 {[%clk 0:00:50]} 16. Nf3 {[%clk 0:00:36.9]} 16... Ba6 {[%clk 0:00:49.4]} 17. c4 {[%clk 0:00:34.6]} 17... Bd4 {[%clk 0:00:46.8]} 18. Rb1 {[%clk 0:00:30.6]} 18... c6 {[%clk 0:00:44.8]} 19. Nxd4 {[%clk 0:00:29.4]} 19... Rxd4 {[%clk 0:00:43]} 20. Be3 {[%clk 0:00:28.7]} 20... Rd6 {[%clk 0:00:36.5]} 21. Qg4 {[%clk 0:00:27.1]} 21... Re6 {[%clk 0:00:35.2]} 22. Bd2 {[%clk 0:00:25]} 22... b5 {[%clk 0:00:34.2]} 23. Bc3 {[%clk 0:00:23.4]} 23... bxc4 {[%clk 0:00:32.9]} 24. Qxg7# {[%clk 0:00:19]} 1-0